fUSD/lending_fUSD_20240805
["ID","MTS","AMOUNT","RATE_DAILY","PERIOD"]
[334195491,1722825032641,-226.42,0.0001,2]
[334195492,1722825032650,-226.42,0.0001,2]
[334195493,1722825032660,-226.42,0.0001,2]
[334195494,1722825032670,-226.42,0.0001,2]
[334195495,1722825032680,-226.42,0.0001,2]
[334195497,1722825032689,-226.42,0.0001,2]
[334195499,1722825032699,-226.42,0.0001,2]
[334195501,1722825032708,-226.42,0.0001,2]
[334195503,1722825032718,-226.42,0.0001,2]
[334195505,1722825032727,-226.42,0.0001,2]
[334195506,1722825032736,-226.42,0.0001,2]
[334195507,1722825032746,-226.42,0.0001,2]
[334195508,1722825032756,-226.42,0.0001,2]
[334195509,1722825032765,-226.42,0.0001,2]
[334195510,1722825032775,-226.42,0.0001,2]
[334195511,1722825032785,-226.42,0.0001,2]
[334195512,1722825032794,-226.42,0.0001,2]
[334195513,1722825032803,-226.42,0.0001,2]
[334195514,1722825032812,-226.42,0.0001,2]
[334195515,1722825032824,-1100.0,0.000101,3]
[334195516,1722825032833,-2200.0,0.000102,3]
[334195517,1722825032844,-153.06,0.00010234,2]
[334195518,1722825032853,-153.06,0.00010238,2]
[334195519,1722825032867,-153.06,0.00010242,2]
[334195520,1722825032876,-153.06,0.00010247,2]
[334195521,1722825032886,-153.06,0.00010251,2]
[334195522,1722825032897,-153.06,0.00010255,2]
[334195523,1722825032906,-153.06,0.0001026,2]
[334195524,1722825032915,-153.06,0.00010264,2]
[334195525,1722825032925,-153.06,0.00010268,2]
[334195526,1722825032934,-153.06,0.00010272,2]
[334195527,1722825032943,-153.06,0.00010277,2]
[334195528,1722825032952,-153.06,0.00010281,2]
[334195529,1722825032961,-153.06,0.00010285,2]
[334195530,1722825032970,-3300.0,0.000103,3]
[334195531,1722825032979,-4500.0,0.000104,3]
[334195532,1722825032989,-1106.68,0.00010457,2]
[334195533,1722825032998,-5600.0,0.000105,3]
[334195534,1722825033007,-1000.0,0.0001052,2]
[334195535,1722825033016,-1100.0,0.000106,3]
[334195536,1722825033026,-420.0,0.00010669,2]
[334195537,1722825033036,-300.0,0.00010669,2]
[334195538,1722825033045,-255.0,0.00010669,2]
[334195539,1722825033055,-792.22198707,0.0001067,2]
[334195540,1722825033064,-1100.0,0.000107,3]
[334195541,1722825033074,-1100.0,0.000108,3]
[334195542,1722825033084,-400.0,0.00010817,2]
[334195543,1722825033093,-531.26212434,0.00010899,2]
[334195544,1722825033103,-531.26212433,0.000109,2]
[334195545,1722825033117,-362.17131034,0.000109,2]
[334195546,1722825033127,-1100.0,0.000109,3]
[334195547,1722825033137,-792.22198706,0.000109,2]
[334195548,1722825033147,-2274.72947992,0.000109,2]
[334195549,1722825033158,-531.26212433,0.000109,2]
[334195550,1722825033169,-151.06,0.000109,2]
[334195551,1722825033179,-151.06,0.000109,2]
[334195552,1722825033189,-158.51534585,0.000109,2]
[334195553,1722825033199,-362.17131034,0.00010939,2]
[334195554,1722825033209,-5808.05223549,0.00010949,2]
[334195555,1722825033219,-250.0,0.00010959,2]
[334195556,1722825033229,-11704.27,0.00010959,2]
[334195557,1722825033239,-2000.0,0.00010959,2]
[334195558,1722825033248,-1500.0,0.00010959,5]
[334195559,1722825033258,-19966.57,0.00010959,2]
[334195560,1722825033268,-2226.65,0.00010959,2]
[334195561,1722825033278,-179.88,0.00010959,2]
[334195562,1722825033288,-392.83,0.00010959,2]
[334195563,1722825033297,-327.36,0.00010959,2]
[334195564,1722825033307,-150.0,0.00010959,2]
[334195565,1722825033316,-272.8,0.00010959,2]
[334195566,1722825033326,-227.33,0.00010959,2]
[334195567,1722825033337,-189.45,0.00010959,2]
[334195568,1722825033347,-14422.91018382,0.0001098,2]
[334195569,1722825033357,-151.06,0.00010988,2]
[334195570,1722825033372,-151.06,0.00010989,2]
[334195571,1722825033382,-151.06,0.0001099,2]
[334195572,1722825033392,-151.06,0.0001099,2]
[334195573,1722825033402,-151.06,0.0001099,2]
[334195574,1722825033412,-151.06,0.0001099,2]
[334195575,1722825033423,-151.06,0.0001099,2]
[334195576,1722825033433,-151.06,0.0001099,2]
[334195577,1722825033443,-151.06,0.0001099,2]
[334195578,1722825033453,-151.06,0.0001099,2]
[334195579,1722825033463,-151.06,0.0001099,2]
[334195580,1722825033473,-151.06,0.0001099,2]
[334195581,1722825033482,-151.06,0.0001099,2]
[334195582,1722825033492,-151.06,0.0001099,2]
[334195583,1722825033501,-151.06,0.0001099,2]
[334195584,1722825033511,-151.06,0.0001099,2]
[334195585,1722825033520,-151.06,0.0001099,2]
[334195586,1722825033530,-151.06,0.0001099,2]
[334195587,1722825033540,-151.06,0.0001099,2]
[334195588,1722825033549,-151.06,0.0001099,2]
[334195589,1722825033558,-151.06,0.0001099,2]
[334195590,1722825033568,-151.06,0.0001099,2]
[334195591,1722825033577,-151.06,0.0001099,2]
[334195592,1722825033587,-151.06,0.0001099,2]
[334195593,1722825033597,-151.06,0.0001099,2]
[334195594,1722825033607,-151.06,0.0001099,2]
[334195595,1722825033620,-151.06,0.0001099,2]
[334195596,1722825033630,-151.06,0.0001099,2]
[334195597,1722825033640,-151.06,0.0001099,2]
[334195598,1722825033650,-151.06,0.0001099,2]
[334195599,1722825033664,-151.06,0.0001099,2]
[334195600,1722825033674,-151.06,0.0001099,2]
[334195601,1722825033683,-151.06,0.0001099,2]
[334195602,1722825033692,-151.06,0.0001099,2]
[334195603,1722825033702,-151.06,0.0001099,2]
[334195604,1722825033713,-151.06,0.0001099,2]
[334195605,1722825033723,-151.06,0.0001099,2]
[334195606,1722825033734,-151.06,0.0001099,2]
[334195607,1722825033745,-151.06,0.0001099,2]
[334195608,1722825033755,-151.06,0.0001099,2]
[334195609,1722825033766,-151.06,0.0001099,2]
[334195610,1722825033776,-151.06,0.0001099,2]
[334195611,1722825033786,-151.06,0.0001099,2]
[334195612,1722825033798,-151.06,0.0001099,2]
[334195613,1722825033810,-151.06,0.0001099,2]
[334195614,1722825033820,-151.06,0.0001099,2]
[334195615,1722825033830,-151.06,0.0001099,2]
[334195616,1722825033841,-151.06,0.0001099,2]
[334195617,1722825033851,-151.06,0.0001099,2]
[334195618,1722825033861,-151.06,0.0001099,2]
[334195619,1722825033874,-151.06,0.0001099,2]
[334195620,1722825033886,-151.06,0.0001099,2]
[334195621,1722825033896,-151.06,0.0001099,2]
[334195622,1722825033905,-151.06,0.0001099,2]
[334195623,1722825033916,-151.06,0.0001099,2]
[334195624,1722825033926,-151.06,0.0001099,2]
[334195625,1722825033937,-151.06,0.0001099,2]
[334195626,1722825033947,-151.06,0.0001099,2]
[334195627,1722825033957,-151.06,0.0001099,2]
[334195628,1722825033967,-151.06,0.0001099,2]
[334195629,1722825033976,-151.06,0.0001099,2]
[334195630,1722825033986,-151.06,0.0001099,2]
[334195631,1722825033996,-151.06,0.0001099,2]
[334195632,1722825034005,-151.06,0.0001099,2]
[334195633,1722825034015,-151.06,0.0001099,2]
[334195634,1722825034024,-151.06,0.0001099,2]
[334195635,1722825034034,-151.06,0.0001099,2]
[334195636,1722825034044,-151.06,0.0001099,2]
[334195637,1722825034054,-151.06,0.0001099,2]
[334195638,1722825034063,-151.06,0.0001099,2]
[334195639,1722825034073,-151.06,0.0001099,2]
[334195640,1722825034082,-151.06,0.0001099,2]
[334195641,1722825034091,-151.06,0.0001099,2]
[334195642,1722825034100,-151.06,0.0001099,2]
[334195643,1722825034111,-151.06,0.0001099,2]
[334195644,1722825034123,-151.06,0.0001099,2]
[334195645,1722825034132,-151.06,0.0001099,2]
[334195646,1722825034142,-151.06,0.0001099,2]
[334195647,1722825034152,-5808.05223549,0.0001099,2]
[334195648,1722825034161,-5808.05223549,0.0001099,2]
[334195649,1722825034171,-1187.1374212,0.00010997,3]
[334195650,1722825034181,-500.0,0.00010998,2]
[334195651,1722825034190,-500.0,0.00010998,2]
[334195652,1722825034200,-500.0,0.00010998,2]
[334195653,1722825034210,-500.0,0.00010998,2]
[334195654,1722825034219,-500.0,0.00010998,2]
[334195655,1722825034229,-500.0,0.00010998,2]
[334195656,1722825034238,-500.0,0.00010998,2]
[334195657,1722825034248,-500.0,0.00010998,2]
[334195658,1722825034258,-500.0,0.00010998,2]
[334195659,1722825034268,-500.0,0.00010998,2]
[334195660,1722825034278,-500.0,0.00010998,2]
[334195661,1722825034288,-500.0,0.00010998,2]
[334195662,1722825034298,-500.0,0.00010998,2]
[334195663,1722825034308,-500.0,0.00010998,2]
[334195664,1722825034317,-500.0,0.00010998,2]
[334195665,1722825034327,-500.0,0.00010998,2]
[334195666,1722825034336,-500.0,0.00010998,2]
[334195667,1722825034346,-500.0,0.00010998,2]
[334195668,1722825034356,-500.0,0.00010998,2]
[334195669,1722825034368,-177.23422494,0.00010998,2]
[334195670,1722825034378,-500.0,0.00010998,2]
[334195671,1722825034388,-500.0,0.00010998,2]
[334195672,1722825034398,-500.0,0.00010998,2]
[334195673,1722825034408,-500.0,0.00010998,2]
[334195674,1722825034418,-500.0,0.00010998,2]
[334195675,1722825034428,-500.0,0.00010998,2]
[334195676,1722825034438,-500.0,0.00010998,2]
[334195677,1722825034448,-500.0,0.00010998,2]
[334195678,1722825034457,-500.0,0.00010998,2]
[334195679,1722825034467,-500.0,0.00010998,2]
[334195680,1722825034477,-500.0,0.00010998,2]
[334195681,1722825034486,-500.0,0.00010998,2]
[334195682,1722825034496,-500.0,0.00010998,2]
[334195683,1722825034506,-500.0,0.00010998,2]
[334195684,1722825034516,-500.0,0.00010998,2]
[334195685,1722825034525,-500.0,0.00010998,2]
[334195686,1722825034535,-500.0,0.00010998,2]
[334195687,1722825034544,-500.0,0.00010998,2]
[334195688,1722825034554,-500.0,0.00010998,2]
[334195689,1722825034563,-500.0,0.00010998,2]
[334195690,1722825034573,-500.0,0.00010998,2]
[334195691,1722825034583,-500.0,0.00010998,2]
[334195692,1722825034593,-500.0,0.00010998,2]
[334195693,1722825034602,-500.0,0.00010998,2]
[334195694,1722825034612,-500.0,0.00010998,2]
[334195695,1722825034627,-500.0,0.00010998,2]
[334195696,1722825034636,-537.69821554,0.00010998,2]
[334195697,1722825034646,-500.0,0.00010998,2]
[334195698,1722825034656,-500.0,0.00010998,2]
[334195699,1722825034666,-500.0,0.00010998,2]
[334195700,1722825034675,-500.0,0.00010998,2]
[334195701,1722825034686,-500.0,0.00010998,2]
[334195702,1722825034703,-500.0,0.00010998,2]
[334195703,1722825034714,-500.0,0.00010998,2]
[334195704,1722825034724,-500.0,0.00010998,2]
[334195705,1722825034736,-500.0,0.00010998,2]
[334195706,1722825034746,-500.0,0.00010998,2]
[334195707,1722825034757,-500.0,0.00010998,2]
[334195708,1722825034767,-211.05371428,0.00010998,2]
[334195709,1722825034778,-500.0,0.00010998,2]
[334195710,1722825034788,-500.0,0.00010998,2]
[334195711,1722825034800,-500.0,0.00010998,2]
[334195712,1722825034811,-7614.54075709,0.00010998,2]
[334195713,1722825034820,-500.0,0.00010998,2]
[334195714,1722825034830,-500.0,0.00010998,2]
[334195715,1722825034841,-500.0,0.00010998,2]
[334195716,1722825034851,-500.0,0.00010998,2]
[334195717,1722825034861,-250.0,0.00010998,2]
[334195718,1722825034876,-500.0,0.00010998,2]
[334195719,1722825034886,-82297.41226358,0.00010999,2]
[334195720,1722825034900,-1187.1374212,0.00010999,3]
[334195721,1722825034909,-1187.1374212,0.00010999,3]
[334195722,1722825035168,-202.82500603,0.00010999,2]
[334195723,1722825035178,-500.0,0.00010999,2]
[334195724,1722825035188,-500.0,0.00010999,2]
[334195725,1722825035198,-500.0,0.00010999,2]
[334195726,1722825035207,-500.0,0.00010999,2]
[334195727,1722825035217,-209.21780578,0.00010999,2]
[334195728,1722825035226,-500.0,0.00010999,2]
[334195729,1722825035235,-144606.60819049,0.00011,2]
[334195730,1722825035856,-5530.51723118,0.00011,2]
[334195731,1722825035874,-1202.46363093,0.00011,2]
[334195732,1722825035886,-1179.45,0.00011,2]
[334195733,1722825035898,-2420.07195391,0.00011,2]
[334195734,1722825036124,-226.42,0.0001,2]
[334195735,1722825036134,-718.06844133,0.00011,2]
[334195736,1722825036145,-1478.77551034,0.00011,2]
[334195737,1722825036156,-4401.00416943,0.00011,2]
[334195738,1722825036167,-9730.93695535,0.00011,2]
[334195739,1722825036178,-1184.24886143,0.00011,2]
[334195740,1722825036189,-368.7704374,0.00011,2]
[334195798,1722825039950,-226.42,0.0001,2]
[334195800,1722825039960,-226.42,0.0001,2]
[334195802,1722825039970,-226.42,0.0001,2]
[334195804,1722825039980,-226.42,0.0001,2]
[334195806,1722825039990,-226.42,0.0001,2]
[334195808,1722825040000,-193.64669933,0.000109,2]
[334195810,1722825040010,-157.87,0.00010959,2]
[334195812,1722825040019,-200.0,0.00010973,2]
[334195814,1722825040028,-1015.13330067,0.00010995,2]
[334195816,1722825040039,-644.64277709,0.00010995,2]
[334195818,1722825040050,-373.60583987,0.00010995,2]
[334195820,1722825040062,-1012.14798794,0.00010995,2]
[334195822,1722825040072,-172.99347112,0.00010997,2]
[334195823,1722825040084,-24191.24577344,0.00010997,2]
[334195825,1722825040093,-46080.84823736,0.00011,2]
[334195837,1722825040217,-405.4221579,0.00011,2]
[334195839,1722825040228,-1020.84998605,0.00011,2]
[334195842,1722825040239,-1549.99993909,0.00011,2]
[334195844,1722825040251,-659.2,0.00011,2]
[334195846,1722825040263,-1304.25903189,0.00011,2]
[334195848,1722825040275,-7543.16,0.00011,2]
[334195850,1722825040287,-2507.26893017,0.00011,2]
[334195853,1722825040374,-358.005,0.00011,2]
[334195854,1722825040387,-419.97943948,0.00011,2]
[334195867,1722825041096,1500.0,0.00025,60]
[334195868,1722825041155,-637.17304018,9.6e-05,2]
[334195869,1722825041167,-362.82695982,9.6e-05,2]
[334195870,1722825041177,-5.2135064,0.00011,2]
[334195871,1722825041190,-1221.18105363,0.00011,2]
[334195872,1722825041202,-1156.2,0.00011,2]
[334195873,1722825041214,-2967.278662,0.00011,2]
[334195874,1722825041226,-10513.55896242,0.00011,2]
[334195875,1722825041238,-309.71828875,0.00011,2]
[334195876,1722825041250,-473.28023069,0.00011,2]
[334195877,1722825041261,-1917.30000001,0.00011,2]
[334195878,1722825041273,-2007.82210048,0.00011,2]
[334195879,1722825041395,-565.524575,0.00011,2]
[334195880,1722825041408,-31467.5311131,0.00011,2]
[334195881,1722825041421,-876.43586922,0.00011,2]
[334195882,1722825041439,-3220.35,0.00011,2]
[334195883,1722825041453,-1029.97963054,0.00011,2]
[334195884,1722825041556,-339.86,0.00011,2]
[334195885,1722825041570,-666.66,0.00011,2]
[334195886,1722825041583,-334.29849622,0.00011,2]
[334195887,1722825041596,-2109.97814077,0.00011,2]
[334195888,1722825041610,-5441.758176,0.00011,2]
[334195889,1722825041632,-455.28848318,0.00011,2]
[334195890,1722825041646,-9643.92039372,0.00011,2]
[334195891,1722825041659,-1575.94043936,0.00011,2]
[334195892,1722825041673,-1146.80056203,0.00011,2]
[334195893,1722825041687,-517.0,0.00011,2]
[334195894,1722825041700,-1903.01319562,0.00011,2]
[334196044,1722825043094,-772.1299993,0.00011,2]
[334196049,1722825043106,-716.30002,0.00011,2]
[334196051,1722825043118,-541.55038011,0.00011,2]
[334196054,1722825043133,-697.68583,0.00011,2]
[334196056,1722825043147,-720.02828238,0.00011,2]
[334196059,1722825043159,-434.855895,0.00011,2]
[334196063,1722825043171,-412.1753019,0.00011,2]
[334196065,1722825043182,-527.54263443,0.00011,2]
[334196066,1722825043194,-837.93466786,0.00011,2]
[334196067,1722825043205,-7705.08832611,0.00011,2]
[334196068,1722825043219,-485.29999995,0.00011,2]
[334196093,1722825043531,-4445.23740939,0.00011,2]
[334196095,1722825043542,-306.6392279,0.00011,2]
[334196097,1722825043553,-488.90515995,0.00011,2]
[334196099,1722825043564,-605.70812265,0.00011,2]
[334196101,1722825043575,-2626.05240675,0.00011,2]
[334196103,1722825043587,-2412.76781899,0.00011,2]
[334196196,1722825044687,-412.07850985,0.00011,2]
[334196197,1722825044699,-720.53499988,0.00011,2]
[334196198,1722825044710,-499.44131326,0.00011,2]
[334196199,1722825044722,-198192.9840495,0.00011,2]
[334196200,1722825044733,-916.74900749,0.00011,2]
[334196201,1722825044744,-4682.33561074,0.00011,2]
[334196202,1722825044755,-9167.33825078,0.00011,2]
[334196203,1722825044766,-895.78987325,0.00011,2]
[334196204,1722825044808,-542.0,0.00011,2]
[334196205,1722825044821,-348.04079335,0.00011,2]
[334196206,1722825044834,-257.08898764,0.00011,2]
[334196207,1722825044845,-668.90836217,0.00011,2]
[334196208,1722825044858,-1275.06622649,0.00011,2]
[334196209,1722825044869,-2340.0,0.00011,2]
[334196210,1722825044885,-432.89653833,0.00011,2]
[334196211,1722825044899,-518.97617547,0.00011,2]
[334196212,1722825044911,-616.45468681,0.00011,2]
[334196213,1722825044923,-3145.92623713,0.00011,2]
[334196214,1722825044935,-515.811067,0.00011,2]
[334196216,1722825044946,-475.33246739,0.00011,2]
[334196218,1722825044958,-565.99524606,0.00011,2]
[334196290,1722825047002,-540.5,0.00010959,2]
[334196291,1722825047013,-248.88,0.00010959,2]
[334196292,1722825047023,-861.2455479,0.00011,2]
[334196293,1722825047034,-1137.60890103,0.00011,2]
[334196294,1722825047045,-14442.60538407,0.00011,2]
[334196295,1722825047056,-1031.57713695,0.00011,2]
[334196296,1722825047067,-268.25,0.00011,2]
[334196297,1722825047079,-1904.96994,0.00011,2]
[334196298,1722825047090,-1583.89,0.00011,2]
[334196299,1722825047101,-1128.75496496,0.00011,2]
[334196300,1722825047112,-998.491994,0.00011,2]
[334196301,1722825047123,-53865.99999999,0.00011,2]
[334196302,1722825047140,-3207.21499114,0.00011,2]
[334196303,1722825047151,-8843.92475302,0.00011,2]
[334196309,1722825047202,-324304.58850812,0.00011,2]
[334196312,1722825047213,-11282.12981124,0.00011,2]
[334196314,1722825047224,-8046.26506283,0.00011,2]
[334196316,1722825047235,-442.00812808,0.00011,2]
[334196318,1722825047246,-547.44,0.00011,2]
[334196319,1722825047257,-299.07844765,0.00011,2]
[334196320,1722825047268,-1914.47651,0.00011,2]
[334196322,1722825047279,-1453.49,0.00011,2]
[334196324,1722825047291,-8210.78834993,0.00011,2]
[334196339,1722825087388,169.83,9.293e-05,2]
[334196348,1722825137305,692.66620014,9.293e-05,2]
[334196349,1722825144439,1222.86024952,9.293e-05,2]
[334196350,1722825146291,158.83612492,9.293e-05,2]
[334196351,1722825147654,425.59163485,9.293e-05,2]
[334196352,1722825158072,1372.43690937,9.293e-05,2]
[334196353,1722825159859,871.61874262,9.293e-05,2]
[334196354,1722825163989,155.12329,9.293e-05,2]
[334196355,1722825166979,1534.63775422,9.293e-05,2]
[334196356,1722825182370,2741.46079709,9.293e-05,2]
[334196357,1722825185422,227.63850404,9.293e-05,2]
[334196358,1722825212930,1158.43634607,9.293e-05,2]
[334196359,1722825283394,227.63850404,9.293e-05,2]
[334196360,1722825362130,185.65755405,9.247e-05,30]
[334196361,1722825394323,112.94059167,0.00016,50]
[334196362,1722825394352,439.74270123,0.00016,50]
[334196363,1722825396792,-2000.0,0.00027,120]
[334196364,1722825405646,-1000.0,0.00027,120]
[334196372,1722825433321,150.5,0.000178,120]
[334196373,1722825433539,458.0,0.000178,120]
[334196374,1722825433808,274.83,0.0001779,120]
[334196375,1722825434010,458.0,0.0001779,120]
[334196376,1722825434471,458.0,0.0001778,120]
[334196377,1722825436202,458.0,0.000178,120]
[334196378,1722825436331,458.0,0.0001779,120]
[334196379,1722825436471,458.0,0.0001778,120]
[334196380,1722825436701,458.0,0.000178,120]
[334196381,1722825437097,458.0,0.0001779,120]
[334196382,1722825437610,458.0,0.000178,120]
[334196383,1722825438043,460.5,0.0001779,120]
[334196384,1722825493957,1132.0,0.00025,60]
[334196385,1722825567370,1044.11,8.316e-05,2]
[334196387,1722825659938,5000.0,0.00025,60]
[334196388,1722825697265,4000.0,0.00025,60]
[334196389,1722825717160,1846.6455,9.499e-05,2]
[334196390,1722825742219,5000.0,0.00025,60]
[334196397,1722825771186,629.080511,0.00025,60]
[334196398,1722825801572,628.080511,0.00025,61]
[334196399,1722825845684,785.0810511,0.00025,62]
[334196400,1722825958130,1049.99995705,0.00016999,40]
[334196401,1722825999929,-150.0,9.562e-05,2]
[334196402,1722826032912,150.5,0.00017798,120]
[334196403,1722826033419,1571.0,0.00017798,120]
[334196404,1722826033481,150.5,0.00017788,120]
[334196405,1722826033724,260.52,0.00017798,120]
[334196406,1722826033975,150.5,0.00017778,120]
[334196407,1722826034026,1571.0,0.00017788,120]
[334196408,1722826035278,150.5,0.00017798,120]
[334196409,1722826035320,1571.0,0.00017778,120]
[334196410,1722826035558,1571.0,0.00017798,120]
[334196411,1722826035893,1571.0,0.00017788,120]
[334196412,1722826036048,1571.0,0.00017778,120]
[334196413,1722826036387,1571.0,0.00017798,120]
[334196414,1722826036920,1571.0,0.00017788,120]
[334196415,1722826037419,1571.0,0.00017798,120]
[334196416,1722826037878,1577.87,0.00017788,120]
[334196417,1722826071846,552.6832929,0.00016999,50]
[334196418,1722826073395,-200.0,0.00027,120]
[334196426,1722826128993,175.62427933,8.219e-05,2]
[334196427,1722826129033,915.88572067,8.219e-05,2]
[334196428,1722826133974,857.14,9.472e-05,2]
[334196431,1722826152932,150.5,0.00017798,120]
[334196432,1722826153395,150.5,0.00017788,120]
[334196433,1722826154022,150.5,0.00017778,120]
[334196434,1722826154060,150.5,0.00017798,120]
[334196435,1722826155027,150.5,0.00017788,120]
[334196436,1722826155057,150.5,0.00017798,120]
[334196437,1722826155308,191.0,0.00017778,120]
[334196438,1722826155344,150.5,0.00017788,120]
[334196439,1722826155462,195.83,0.00017778,120]
[334196440,1722826172862,1000.0,9.507e-05,2]
[334196441,1722826184093,532.62,9.495e-05,2]
[334196442,1722826193162,1961.68,9.453e-05,2]
[334196480,1722826232296,-259.0,9.597e-05,2]
[334196484,1722826232306,-91.0,9.597e-05,2]
[334196485,1722826232328,-209.0,9.597e-05,2]
[334196487,1722826232338,-3285.59338565,9.597e-05,2]
[334196489,1722826232350,-3331.60637566,9.597e-05,2]
[334196491,1722826232359,-14.07185495,9.598e-05,2]
[334196499,1722826232589,-285.92814505,9.598e-05,2]
[334196503,1722826232598,-4384.65325862,9.598e-05,2]
[334196508,1722826232610,-2889.96806604,9.598e-05,2]
[334196510,1722826232622,-572.17482022,9.598e-05,2]
[334196512,1722826232633,-399.12662878,9.598e-05,2]
[334196515,1722826232645,-1656.34148106,9.598e-05,2]
[334196517,1722826232656,-1797.40548677,9.598e-05,2]
[334196519,1722826232668,-335.92939992,9.598e-05,2]
[334196521,1722826232680,-348.89010204,9.598e-05,2]
[334196523,1722826232692,-6536.8573978,9.598e-05,2]
[334196526,1722826232704,-522.58091288,9.598e-05,2]
[334196528,1722826232716,-334.50747262,9.598e-05,2]
[334196530,1722826232727,-616.616,9.598e-05,2]
[334196535,1722826234433,246.78491156,9.453e-05,2]
[334196536,1722826236462,1223.15336845,9.453e-05,2]
[334196537,1722826238289,363.72095219,9.453e-05,2]
[334196549,1722826238410,-465.0766574,9.598e-05,2]
[334196550,1722826238420,-845.691376,9.598e-05,2]
[334196551,1722826238431,-15724.5677687,9.598e-05,2]
[334196552,1722826238441,-150.0,9.599e-05,2]
[334196553,1722826238450,-3866.964,9.6e-05,2]
[334196554,1722826238459,-22880.93343432,9.6e-05,2]
[334196558,1722826239730,-306.06229146,9.6e-05,2]
[334196560,1722826239746,-2690.65746177,9.6e-05,2]
[334196562,1722826239760,-445.34091486,9.6e-05,2]
[334196566,1722826239809,-504.3514221,9.6e-05,2]
[334196568,1722826239826,-1328.83403623,9.6e-05,2]
[334196570,1722826239839,-636.95073698,9.6e-05,2]
[334196571,1722826239851,-10329.28820228,9.6e-05,2]
[334196573,1722826239861,-9638.41259772,9.6e-05,2]
[334196577,1722826239920,-30743.60152304,9.6e-05,2]
[334196579,1722826239932,-6068.56335205,9.6e-05,2]
[334196581,1722826239944,-6758.66336748,9.6e-05,2]
[334196583,1722826239956,-2302.89454731,9.6e-05,2]
[334196623,1722826240576,-1139.11643078,9.6e-05,2]
[334196627,1722826240597,-814.74037197,9.6e-05,2]
[334196630,1722826240609,-515.56383828,9.6e-05,2]
[334196632,1722826240623,-582.83643837,9.6e-05,2]
[334196634,1722826240634,-1462.79404271,9.6e-05,2]
[334196637,1722826240647,-2597.56225702,9.6e-05,2]
[334196639,1722826240659,-24983.04808856,9.6e-05,2]
[334196643,1722826240671,-24492.5354861,9.6e-05,2]
[334196645,1722826240683,-4582.02795834,9.6e-05,2]
[334196647,1722826240696,-1522.4473018,9.6e-05,2]
[334196648,1722826240709,-126795.19239847,9.6e-05,2]
[334196649,1722826240719,-856.143,9.6e-05,2]
[334196650,1722826240730,-877.46,9.659e-05,2]
[334196651,1722826240740,-200.0,9.859e-05,2]
[334196652,1722826240749,-150.0,9.888e-05,2]
[334196653,1722826240759,-23900.0,9.909e-05,2]
[334196654,1722826240769,-170.36,9.926e-05,2]
[334196655,1722826240779,-500.0,9.971e-05,2]
[334196656,1722826240789,-646.72,9.971e-05,2]
[334196657,1722826240799,-484.87,9.971e-05,2]
[334196658,1722826240808,-943.5,0.00010051,2]
[334196659,1722826240819,-178.32,0.00010063,2]
[334196660,1722826240836,-445.27,0.00010089,2]
[334196661,1722826240845,-2298.04,0.00010089,2]
[334196662,1722826240855,-1200.0,0.000101,3]
[334196663,1722826240865,-250.0,0.00010165,2]
[334196664,1722826240875,-2400.0,0.000102,3]
[334196665,1722826240884,-3600.0,0.000103,3]
[334196666,1722826240894,-647.95,0.0001036,2]